[Event "GER-ch Youth U16w 2019"]
[Site "Willingen"]
[Date "2019.06.09"]
[Round "1.1"]
[White "Meijerink, Inken"]
[Black "Muedder, Melanie"]
[Result "0-1"]
[ECO "B23"]
[WhiteElo "1681"]
[BlackElo "1912"]
[Annotator "NA"]
[PlyCount "74"]
[EventDate "2019.06.07"]
[EventType "swiss"]
[EventRounds "9"]
[EventCountry "GER"]
[SourceTitle "playchess.com"]
[Source "ChessBase"]
[SourceQuality "1"]
[TimeControl "40/5400+30:1800+30"]

1. e4 {[%emt 0:00:00]} c5 {[%emt 0:00:00]} 2. Nc3 {[%emt 0:00:00]} Nc6 {[%emt 0:00:00]} 3. f4 {[%emt 0:00:56]} g6 {[%emt 0:00:56]} 4. Bc4 {[%emt 0:00:46]} Bg7 {[%emt 0:00:59]} 5. Nf3 {[%emt 0:00:54]} e6 {[%emt 0:00:28]} 6. d3 {[%emt 0:00:39]} Nge7 {[%emt 0:01:07]} 7. O-O {[%emt 0:00:28]} O-O {[%emt 0:03:15]} 8. Qe1 {[%emt 0:00:46]} d5 {[%emt 0:00:36]} 9. Bb3 {[%emt 0:00:15]} Nd4 {[%emt 0:00:39]} 10. Nxd4 {[%emt 0:00:54]} Bxd4+ {[%emt 0:09:57]} 11. Kh1 {[%emt 0:00:41]} Bg7 {[%emt 0:00:55]} 12. Qh4 {[%emt 0:02:45]} f5 {[%emt 0:19:06]} 13. e5 {[%emt 0:10:00]} a6 {[%emt 0:05:06]} 14. a3 {[%emt 0:11:38]} b5 {[%emt 0:06:45]} 15. Ba2 {[%emt 0:07:47]} Qc7 {[%emt 0:05:51]} 16. Ne2 {[%emt 0:03:53]} Nc6 {[%emt 0:10:08]} 17. c3 {[%emt 0:04:33]} a5 {[%emt 0:06:50]} 18. Be3 {[%emt 0:07:10]} Nd8 {[%emt 0:05:10]} 19. Qf2 {[%emt 0:07:05]} Nb7 {[%emt 0:01:17]} 20. b4 {[%emt 0:05:26]} axb4 {[%emt 0:02:14]} 21. axb4 {[%emt 0:00:28]} c4 {[%emt 0:02:22]} 22. dxc4 {[%emt 0:02:28]} bxc4 {[%emt 0:02:52]} 23. Rfb1 {[%emt 0:05:10]} Qe7 {[%emt 0:04:25]} 24. Nd4 {[%emt 0:05:04]} Bd7 {[%emt 0:02:11]} 25. b5 {[%emt 0:02:17]} Rfc8 {[%emt 0:01:59]} 26. Qb2 {[%emt 0:06:46]} Nc5 {[%emt 0:02:31]} 27. b6 {[%emt 0:01:59]} Rab8 {[%emt 0:02:06]} 28. Qb4 {[%emt 0:03:42]} Bf8 {[%emt 0:00:17]} 29. Nc2 {[%emt 0:03:18]} Qd8 {[%emt 0:00:57]} 30. Bxc5 {[%emt 0:04:07]} Bxc5 {[%emt 0:00:18]} 31. Qb2 {[%emt 0:00:37]} Rxb6 {[%emt 0:00:34]} 32. Qc1 {[%emt 0:00:19]} Rcb8 {[%emt 0:00:41]} 33. Rxb6 {[%emt 0:00:48]} Rxb6 {[%emt 0:00:18]} 34. Rb1 {[%emt 0:00:25]} Rxb1 {[%emt 0:00:57]} 35. Qxb1 {[%emt 0:00:22]} Qb6 {[%emt 0:00:57]} 36. Qc1 {[%emt 0:02:04]} Ba4 {[%emt 0:01:25]} 37. Bb1 {[%emt 0:01:06]} Qb3 {[%emt 0:00:56] normal} 0-1

[Event "GER-ch Youth U16w 2019"]
[Site "Willingen"]
[Date "2019.06.09"]
[Round "1.2"]
[White "Bui, Ngoc Han Julia"]
[Black "Schneider, Katharina"]
[Result "1-0"]
[ECO "C77"]
[WhiteElo "1973"]
[BlackElo "1784"]
[Annotator "NA"]
[PlyCount "105"]
[EventDate "2019.06.07"]
[EventType "swiss"]
[EventRounds "9"]
[EventCountry "GER"]
[SourceTitle "playchess.com"]
[Source "ChessBase"]
[SourceQuality "1"]
[TimeControl "40/5400+30:1800+30"]

1. e4 {[%emt 0:00:00]} e5 {[%emt 0:00:00]} 2. Nf3 {[%emt 0:00:00]} Nc6 {[%emt 0:00:00]} 3. Bb5 {[%emt 0:00:00]} a6 {[%emt 0:00:00]} 4. Ba4 {[%emt 0:00:00]} Nf6 {[%emt 0:00:00]} 5. d3 {[%emt 0:00:10]} b5 {[%emt 0:00:00]} 6. Bb3 {[%emt 0:00:11]} Bc5 {[%emt 0:00:21]} 7. O-O {[%emt 0:00:28]} d6 {[%emt 0:00:40]} 8. a4 {[%emt 0:00:57]} b4 {[%emt 0:04:39]} 9. a5 {[%emt 0:05:14]} Bg4 {[%emt 0:12:34]} 10. Ba4 {[%emt 0:11:19]} Bd7 {[%emt 0:15:40]} 11. c3 {[%emt 0:05:10]} O-O {[%emt 0:03:55]} 12. Nbd2 {[%emt 0:08:14]} Ne7 {[%emt 0:04:48]} 13. Bb3 {[%emt 0:03:06]} bxc3 {[%emt 0:03:14]} 14. bxc3 {[%emt 0:00:09]} Ng6 {[%emt 0:00:26]} 15. Nc4 {[%emt 0:07:45]} Ba7 {[%emt 0:07:29]} 16. Be3 {[%emt 0:05:13]} Qc8 {[%emt 0:04:33]} 17. Re1 {[%emt 0:13:01]} Bg4 {[%emt 0:03:00]} 18. Bxa7 {[%emt 0:02:53]} Rxa7 {[%emt 0:01:27]} 19. Ne3 {[%emt 0:02:29]} Be6 {[%emt 0:04:51]} 20. Bc2 {[%emt 0:04:44]} Ng4 {[%emt 0:03:26]} 21. d4 {[%emt 0:11:00]} Nxe3 {[%emt 0:03:57]} 22. Rxe3 {[%emt 0:01:27]} Bg4 {[%emt 0:02:18]} 23. h3 {[%emt 0:02:37]} Be6 {[%emt 0:04:43]} 24. Ng5 {[%emt 0:05:24]} Bd7 {[%emt 0:03:37]} 25. Qh5 {[%emt 0:00:42]} h6 {[%emt 0:00:33]} 26. Nxf7 {[%emt 0:03:30]} Rxf7 {[%emt 0:00:21]} 27. Qxg6 {[%emt 0:00:15]} Rf6 {[%emt 0:00:39]} 28. Qg3 {[%emt 0:01:26]} Qf8 {[%emt 0:03:24]} 29. dxe5 {[%emt 0:01:48]} dxe5 {[%emt 0:00:14]} 30. Bb3+ {[%emt 0:02:54]} Kh8 {[%emt 0:00:19]} 31. Rd1 {[%emt 0:00:41]} c6 {[%emt 0:01:14]} 32. Red3 {[%emt 0:00:40]} Be8 {[%emt 0:01:07]} 33. Rd8 {[%emt 0:00:45]} Qe7 {[%emt 0:00:56]} 34. Qd3 {[%emt 0:00:32]} Kh7 {[%emt 0:01:02]} 35. Bc4 {[%emt 0:01:22]} c5 {[%emt 0:01:25]} 36. Qd5 {[%emt 0:00:29]} Bf7 {[%emt 0:00:52]} 37. Qd3 {[%emt 0:00:39]} Bxc4 {[%emt 0:00:31]} 38. Qxc4 {[%emt 0:00:05]} Rf7 {[%emt 0:01:45]} 39. R8d6 {[%emt 0:01:24]} Qh4 {[%emt 0:01:33]} 40. R1d2 {[%emt 0:00:40]} Qf4 {[%emt 0:03:02]} 41. g3 {[%emt 0:09:10]} Qf3 {[%emt 0:02:25]} 42. Qd3 {[%emt 0:04:06]} Rf6 {[%emt 0:04:04]} 43. Rd5 {[%emt 0:02:56]} Qh5 {[%emt 0:05:10]} 44. Kg2 {[%emt 0:01:24]} Rc7 {[%emt 0:00:56]} 45. c4 {[%emt 0:04:08]} Qe8 {[%emt 0:02:40]} 46. Rd6 {[%emt 0:01:45]} Rc6 {[%emt 0:00:43]} 47. Rxf6 {[%emt 0:00:50]} Rxf6 {[%emt 0:00:55]} 48. Qd5 {[%emt 0:00:54]} Qe7 {[%emt 0:03:28]} 49. Rb2 {[%emt 0:00:59]} Qc7 {[%emt 0:01:22]} 50. Rb7 {[%emt 0:02:09]} Qxa5 {[%emt 0:01:44]} 51. Qxe5 {[%emt 0:00:15]} Qa3 {[%emt 0:01:02]} 52. Qxf6 {[%emt 0:00:58]} Kh8 {[%emt 0:00:20]} 53. Qxg7# {normal} 1-0

[Event "GER-ch Youth U16w 2019"]
[Site "Willingen"]
[Date "2019.06.09"]
[Round "1.4"]
[White "Khamenya, Vitalia"]
[Black "Stowicek, Yara Mathilda"]
[Result "1-0"]
[ECO "C44"]
[WhiteElo "1877"]
[BlackElo "1692"]
[Annotator "NA"]
[PlyCount "112"]
[EventDate "2019.06.07"]
[EventType "swiss"]
[EventRounds "9"]
[EventCountry "GER"]
[SourceTitle "playchess.com"]
[Source "ChessBase"]
[SourceQuality "1"]
[TimeControl "40/5400+30:1800+30"]

1. e4 {[%emt 0:00:00]} e5 {[%emt 0:00:00]} 2. Nf3 {[%emt 0:00:00]} Nc6 {[%emt 0:00:00]} 3. d4 {[%emt 0:00:00]} exd4 {[%emt 0:00:01]} 4. Nxd4 {[%emt 0:00:00]} Bb4+ {[%emt 0:05:50]} 5. c3 {[%emt 0:00:04]} Bc5 {[%emt 0:00:18]} 6. Be3 {[%emt 0:00:15]} Bb6 {[%emt 0:00:23]} 7. Nf5 {[%emt 0:00:57]} Qf6 {[%emt 0:05:21]} 8. Bxb6 {[%emt 0:05:53]} axb6 {[%emt 0:00:32]} 9. Ne3 {[%emt 0:00:58]} d6 {[%emt 0:26:31]} 10. Nd5 {[%emt 0:04:21]} Qd8 {[%emt 0:01:58]} 11. c4 {[%emt 0:01:46]} Nf6 {[%emt 0:03:28]} 12. Nbc3 {[%emt 0:01:24]} O-O {[%emt 0:01:27]} 13. Be2 {[%emt 0:00:53]} Re8 {[%emt 0:04:15]} 14. f3 {[%emt 0:00:41]} Be6 {[%emt 0:05:29]} 15. O-O {[%emt 0:00:45]} Bxd5 {[%emt 0:11:52]} 16. cxd5 {[%emt 0:00:12]} Ne5 {[%emt 0:01:36]} 17. Nb5 {[%emt 0:04:47]} Qe7 {[%emt 0:08:08]} 18. Rc1 {[%emt 0:10:07]} Rec8 {[%emt 0:00:41]} 19. a3 {[%emt 0:05:14]} Ne8 {[%emt 0:02:40]} 20. Rf2 {[%emt 0:15:15]} c6 {[%emt 0:03:36]} 21. Nc3 {[%emt 0:01:32]} Nf6 {[%emt 0:04:15]} 22. dxc6 {[%emt 0:11:06]} bxc6 {[%emt 0:00:30]} 23. Qb3 {[%emt 0:00:04]} Nfd7 {[%emt 0:02:17]} 24. Rd1 {[%emt 0:06:21]} Rcb8 {[%emt 0:02:07]} 25. Bf1 {[%emt 0:01:15]} Nc5 {[%emt 0:00:57]} 26. Qc2 {[%emt 0:00:01]} Rd8 {[%emt 0:00:27]} 27. Rfd2 {[%emt 0:04:00]} Ra7 {[%emt 0:00:43]} 28. Na2 {[%emt 0:05:49]} Rc7 {[%emt 0:01:31]} 29. Bc4 {[%emt 0:08:30]} b5 {[%emt 0:01:12]} 30. Be2 {[%emt 0:01:06]} Qe6 {[%emt 0:00:45]} 31. Qxc5 {[%emt 0:01:11]} Rcd7 {[%emt 0:04:08]} 32. Qb4 {[%emt 0:05:15]} c5 {[%emt 0:00:24]} 33. Qxb5 {[%emt 0:00:23]} Qxa2 {[%emt 0:00:07]} 34. f4 {[%emt 0:00:40]} Qe6 {[%emt 0:01:00]} 35. fxe5 {[%emt 0:00:13]} Qxe5 {[%emt 0:00:03]} 36. Bg4 {[%emt 0:00:53]} Re7 {[%emt 0:00:39]} 37. Qb6 {[%emt 0:02:02]} Rde8 {[%emt 0:00:49]} 38. Bf3 {[%emt 0:01:12]} Re6 {[%emt 0:01:13]} 39. Rxd6 {[%emt 0:01:17]} Rxd6 {[%emt 0:01:09]} 40. Qxd6 {[%emt 0:00:16]} Qxb2 {[%emt 0:00:34]} 41. Qxc5 {[%emt 0:31:13]} g6 {[%emt 0:01:48]} 42. a4 {[%emt 0:00:00]} Qa2 {[%emt 0:02:27]} 43. a5 {[%emt 0:00:00]} Ra8 {[%emt 0:00:16]} 44. Qd5 {[%emt 0:00:00]} Qxa5 {[%emt 0:02:02]} 45. Qxa5 {[%emt 0:00:00]} Rxa5 {[%emt 0:00:10]} 46. Kf2 {[%emt 0:00:00]} Kf8 {[%emt 0:00:36]} 47. Re1 {[%emt 0:00:00]} Re5 {[%emt 0:00:43]} 48. Rd1 {[%emt 0:00:00]} Ke7 {[%emt 0:02:20]} 49. Ke3 {[%emt 0:00:00]} f5 {[%emt 0:01:59]} 50. Rd5 {[%emt 0:00:00]} Re6 {[%emt 0:04:06]} 51. Kf4 {[%emt 0:00:00]} fxe4 {[%emt 0:00:51]} 52. Bg4 {[%emt 0:00:00]} Rf6+ {[%emt 0:05:34]} 53. Kxe4 {[%emt 0:00:00]} Rf2 {[%emt 0:00:27]} 54. Bf3 {[%emt 0:00:00]} Ra2 {[%emt 0:01:50]} 55. Ke5 {[%emt 0:00:00]} Ra6 {[%emt 0:02:02]} 56. Bg4 {[%emt 0:00:47]} Ra7 {[%emt 0:01:03] normal} 1-0

[Event "GER-ch Youth U16w 2019"]
[Site "Willingen"]
[Date "2019.06.09"]
[Round "1.5"]
[White "Berelowitsch, Dana"]
[Black "Bardorz, Jana"]
[Result "0-1"]
[ECO "C91"]
[WhiteElo "1753"]
[BlackElo "1769"]
[Annotator "NA"]
[PlyCount "97"]
[EventDate "2019.06.07"]
[EventType "swiss"]
[EventRounds "9"]
[EventCountry "GER"]
[SourceTitle "playchess.com"]
[Source "ChessBase"]
[SourceQuality "1"]
[TimeControl "40/5400+30:1800+30"]

1. e4 {[%emt 0:00:00]} e5 {[%emt 0:00:00]} 2. Nf3 {[%emt 0:00:00]} Nc6 {[%emt 0:00:00]} 3. Bb5 {[%emt 0:00:00]} a6 {[%emt 0:00:00]} 4. Ba4 {[%emt 0:00:00]} Nf6 {[%emt 0:00:00]} 5. O-O {[%emt 0:00:00]} Be7 {[%emt 0:00:00]} 6. Re1 {[%emt 0:00:00]} b5 {[%emt 0:00:00]} 7. Bb3 {[%emt 0:00:00]} d6 {[%emt 0:00:17]} 8. c3 {[%emt 0:00:09]} O-O {[%emt 0:01:27]} 9. d4 {[%emt 0:00:02]} Bg4 {[%emt 0:02:31]} 10. Be3 {[%emt 0:00:16]} Bh5 {[%emt 0:05:34]} 11. Bc2 {[%emt 0:13:17]} Bg6 {[%emt 0:06:29]} 12. Bc1 {[%emt 0:05:48]} Re8 {[%emt 0:06:08]} 13. Nbd2 {[%emt 0:08:19]} Bf8 {[%emt 0:04:22]} 14. d5 {[%emt 0:01:46]} Na5 {[%emt 0:07:09]} 15. b4 {[%emt 0:07:27]} Nb7 {[%emt 0:02:50]} 16. a4 {[%emt 0:03:52]} Qd7 {[%emt 0:06:57]} 17. Nf1 {[%emt 0:13:01]} c6 {[%emt 0:05:20]} 18. Nh4 {[%emt 0:04:02]} a5 {[%emt 0:11:12]} 19. axb5 {[%emt 0:08:47]} cxd5 {[%emt 0:04:23]} 20. Nxg6 {[%emt 0:00:27]} hxg6 {[%emt 0:00:34]} 21. Ba4 {[%emt 0:02:45]} axb4 {[%emt 0:05:51]} 22. Bb2 {[%emt 0:08:23]} Nc5 {[%emt 0:03:58]} 23. exd5 {[%emt 0:02:09]} bxc3 {[%emt 0:03:15]} 24. Bxc3 {[%emt 0:01:31]} Nxd5 {[%emt 0:04:47]} 25. Qxd5 {[%emt 0:01:03]} Rxa4 {[%emt 0:02:54]} 26. Rxa4 {[%emt 0:07:17]} Nxa4 {[%emt 0:00:11]} 27. Ba5 {[%emt 0:04:00]} Qa7 {[%emt 0:03:51]} 28. Bb4 {[%emt 0:04:20]} Nb6 {[%emt 0:01:42]} 29. Qd2 {[%emt 0:02:35]} d5 {[%emt 0:03:46]} 30. Bc3 {[%emt 0:00:17]} f6 {[%emt 0:02:19]} 31. Ra1 {[%emt 0:01:12]} Qd7 {[%emt 0:01:18]} 32. Qd3 {[%emt 0:01:19]} Qf5 {[%emt 0:03:16]} 33. Qe2 {[%emt 0:00:53]} Rc8 {[%emt 0:01:06]} 34. Ng3 {[%emt 0:00:33]} Qd7 {[%emt 0:00:59]} 35. Qb2 {[%emt 0:00:52]} Rc5 {[%emt 0:00:43]} 36. Ba5 {[%emt 0:00:58]} Rxb5 {[%emt 0:00:22]} 37. Qc2 {[%emt 0:00:18]} Nc4 {[%emt 0:00:58]} 38. Bc3 {[%emt 0:00:33]} Bb4 {[%emt 0:01:01]} 39. Bxb4 {[%emt 0:00:22]} Rxb4 {[%emt 0:00:05]} 40. Qxg6 {[%emt 0:00:27]} Ra4 {[%emt 0:01:08]} 41. Rb1 {[%emt 0:02:19]} Ra8 {[%emt 0:04:27]} 42. Nf5 {[%emt 0:06:00]} Nd6 {[%emt 0:03:27]} 43. Ne3 {[%emt 0:09:35]} d4 {[%emt 0:04:51]} 44. Ng4 {[%emt 0:01:58]} Kf8 {[%emt 0:05:30]} 45. Nxf6 {[%emt 0:12:43]} gxf6 {[%emt 0:01:43]} 46. Qxf6+ {[%emt 0:00:10]} Nf7 {[%emt 0:00:43]} 47. h4 {[%emt 0:00:28]} Rc8 {[%emt 0:04:28]} 48. h5 {[%emt 0:00:44]} Qc6 {[%emt 0:01:19]} 49. Qf5 {[%emt 0:00:28] normal} 0-1

[Event "GER-ch Youth U16w 2019"]
[Site "Willingen"]
[Date "2019.06.09"]
[Round "1.6"]
[White "Basovskiy, Jana"]
[Black "Peschel, Julia"]
[Result "1-0"]
[ECO "C54"]
[WhiteElo "1761"]
[BlackElo "1275"]
[Annotator "NA"]
[PlyCount "99"]
[EventDate "2019.06.07"]
[EventType "swiss"]
[EventRounds "9"]
[EventCountry "GER"]
[SourceTitle "playchess.com"]
[Source "ChessBase"]
[SourceQuality "1"]
[TimeControl "40/5400+30:1800+30"]

1. e4 {[%emt 0:00:00]} e5 {[%emt 0:00:00]} 2. Nf3 {[%emt 0:00:00]} Nc6 {[%emt 0:00:00]} 3. Bc4 {[%emt 0:00:00]} Bc5 {[%emt 0:00:00]} 4. c3 {[%emt 0:00:00]} Nf6 {[%emt 0:00:04]} 5. d3 {[%emt 0:00:00]} a6 {[%emt 0:00:07]} 6. Nbd2 {[%emt 0:00:00]} Ba7 {[%emt 0:00:16]} 7. O-O {[%emt 0:00:30]} d6 {[%emt 0:01:03]} 8. Bb3 {[%emt 0:00:06]} O-O {[%emt 0:00:08]} 9. h3 {[%emt 0:00:58]} h6 {[%emt 0:00:12]} 10. Re1 {[%emt 0:00:11]} Re8 {[%emt 0:00:37]} 11. Nf1 {[%emt 0:00:45]} Be6 {[%emt 0:00:44]} 12. Ng3 {[%emt 0:01:29]} d5 {[%emt 0:03:45]} 13. Qe2 {[%emt 0:15:46]} Qd7 {[%emt 0:15:23]} 14. Rd1 {[%emt 0:11:22]} Rad8 {[%emt 0:02:47]} 15. Nh4 {[%emt 0:09:13]} dxe4 {[%emt 0:19:14]} 16. dxe4 {[%emt 0:01:12]} Qc8 {[%emt 0:00:21]} 17. Be3 {[%emt 0:05:26]} Bxe3 {[%emt 0:04:36]} 18. Qxe3 {[%emt 0:00:04]} Bxb3 {[%emt 0:01:06]} 19. axb3 {[%emt 0:00:18]} Qe6 {[%emt 0:01:01]} 20. b4 {[%emt 0:04:21]} Qb3 {[%emt 0:12:18]} 21. Qe2 {[%emt 0:01:45]} Ne7 {[%emt 0:01:30]} 22. Rd2 {[%emt 0:09:08]} Rxd2 {[%emt 0:08:16]} 23. Qxd2 {[%emt 0:00:11]} Nc8 {[%emt 0:04:12]} 24. Nhf5 {[%emt 0:02:22]} Nd6 {[%emt 0:00:33]} 25. Nxd6 {[%emt 0:05:08]} cxd6 {[%emt 0:00:28]} 26. Ra3 {[%emt 0:09:10]} Qe6 {[%emt 0:04:29]} 27. Ra5 {[%emt 0:02:41]} Rd8 {[%emt 0:00:51]} 28. b5 {[%emt 0:05:11]} axb5 {[%emt 0:02:33]} 29. Rxb5 {[%emt 0:00:13]} Rd7 {[%emt 0:00:06]} 30. Qe2 {[%emt 0:04:42]} Rc7 {[%emt 0:03:11]} 31. Qd1 {[%emt 0:01:58]} Rd7 {[%emt 0:02:23]} 32. Qa4 {[%emt 0:02:29]} Kh7 {[%emt 0:00:56]} 33. Qb4 {[%emt 0:01:52]} Rc7 {[%emt 0:06:33]} 34. Rxb7 {[%emt 0:01:43]} Rc4 {[%emt 0:00:22]} 35. Qb6 {[%emt 0:00:35]} Ra4 {[%emt 0:03:13]} 36. Kh2 {[%emt 0:02:03]} Ra1 {[%emt 0:00:51]} 37. Qc7 {[%emt 0:02:29]} Kg6 {[%emt 0:00:45]} 38. f3 {[%emt 0:01:25]} Rc1 {[%emt 0:02:13]} 39. Ne2 {[%emt 0:00:41]} Rc2 {[%emt 0:00:12]} 40. f4 {[%emt 0:01:11]} Qa2 {[%emt 0:01:21]} 41. f5+ {[%emt 0:30:44]} Kh7 {[%emt 0:30:32]} 42. Ng3 {[%emt 0:00:00]} Rxb2 {[%emt 0:00:00]} 43. Rxb2 {[%emt 0:00:00]} Qxb2 {[%emt 0:00:00]} 44. c4 {[%emt 0:00:00]} Kg8 {[%emt 0:00:00]} 45. Qd8+ {[%emt 0:00:00]} Kh7 {[%emt 0:00:00]} 46. Qxd6 {[%emt 0:00:00]} Qd4 {[%emt 0:00:00]} 47. Qc6 {[%emt 0:00:00]} Nd7 {[%emt 0:00:00]} 48. Qd5 {[%emt 0:00:00]} Nb6 {[%emt 0:00:00]} 49. Qxf7 {[%emt 0:00:00]} Qxc4 {[%emt 0:00:00]} 50. Qg6+ {[%emt 0:00:00] normal} 1-0

[Event "GER-ch Youth U16w 2019"]
[Site "Willingen"]
[Date "2019.06.09"]
[Round "1.7"]
[White "Dietz, Helena"]
[Black "Brunner, Sophia"]
[Result "0-1"]
[ECO "A45"]
[WhiteElo "1534"]
[BlackElo "1839"]
[Annotator "NA"]
[PlyCount "64"]
[EventDate "2019.06.07"]
[EventType "swiss"]
[EventRounds "9"]
[EventCountry "GER"]
[SourceTitle "playchess.com"]
[Source "ChessBase"]
[SourceQuality "1"]
[TimeControl "40/5400+30:1800+30"]

1. d4 {[%emt 0:00:00]} Nf6 {[%emt 0:00:00]} 2. Bf4 {[%emt 0:00:01]} d5 {[%emt 0:00:00]} 3. e3 {[%emt 0:00:27]} c5 {[%emt 0:00:19]} 4. c3 {[%emt 0:01:44]} Nc6 {[%emt 0:03:45]} 5. Bd3 {[%emt 0:05:10]} e6 {[%emt 0:07:12]} 6. Nf3 {[%emt 0:03:26]} Bd6 {[%emt 0:00:08]} 7. Bg3 {[%emt 0:01:15]} O-O {[%emt 0:02:36]} 8. Nbd2 {[%emt 0:01:45]} Re8 {[%emt 0:05:03]} 9. Bc2 {[%emt 0:27:55]} e5 {[%emt 0:09:59]} 10. dxc5 {[%emt 0:08:09]} Bxc5 {[%emt 0:00:25]} 11. Nb3 {[%emt 0:00:55]} Bb6 {[%emt 0:05:38]} 12. h3 {[%emt 0:12:50]} Bc7 {[%emt 0:10:22]} 13. Bh4 {[%emt 0:03:50]} Ne7 {[%emt 0:24:15]} 14. Bxf6 {[%emt 0:05:07]} gxf6 {[%emt 0:00:05]} 15. Nfd2 {[%emt 0:01:23]} Bf5 {[%emt 0:10:09]} 16. Bxf5 {[%emt 0:05:37]} Nxf5 {[%emt 0:00:02]} 17. Qg4+ {[%emt 0:01:36]} Ng7 {[%emt 0:00:01]} 18. O-O-O {[%emt 0:01:02]} f5 {[%emt 0:03:11]} 19. Qe2 {[%emt 0:01:27]} Qf6 {[%emt 0:04:13]} 20. Nf3 {[%emt 0:04:40]} Rad8 {[%emt 0:00:52]} 21. Rd2 {[%emt 0:01:03]} a6 {[%emt 0:03:05]} 22. Rhd1 {[%emt 0:01:24]} Qc6 {[%emt 0:00:08]} 23. Rc2 {[%emt 0:04:01]} b5 {[%emt 0:00:33]} 24. Nfd2 {[%emt 0:01:09]} Re7 {[%emt 0:03:34]} 25. Nf3 {[%emt 0:01:42]} a5 {[%emt 0:01:40]} 26. g4 {[%emt 0:02:15]} a4 {[%emt 0:02:20]} 27. Nbd2 {[%emt 0:00:30]} Re6 {[%emt 0:02:00]} 28. Rg1 {[%emt 0:01:21]} fxg4 {[%emt 0:00:20]} 29. Rxg4 {[%emt 0:00:40]} Rg6 {[%emt 0:00:14]} 30. Nh4 {[%emt 0:00:39]} Rxg4 {[%emt 0:00:48]} 31. Qxg4 {[%emt 0:00:02]} Qd7 {[%emt 0:01:06]} 32. Nf5 {[%emt 0:01:42]} Qxf5 {[%emt 0:00:07] normal} 0-1

[Event "GER-ch Youth U16w 2019"]
[Site "Willingen"]
[Date "2019.06.09"]
[Round "1.8"]
[White "Rudolph, Eva"]
[Black "Jacoby, Angelina"]
[Result "1-0"]
[ECO "B00"]
[WhiteElo "1786"]
[BlackElo "1412"]
[Annotator "NA"]
[PlyCount "79"]
[EventDate "2019.06.07"]
[EventType "swiss"]
[EventRounds "9"]
[EventCountry "GER"]
[SourceTitle "playchess.com"]
[Source "ChessBase"]
[SourceQuality "1"]
[TimeControl "40/5400+30:1800+30"]

1. e4 {[%emt 0:00:00]} d6 {[%emt 0:01:06]} 2. d4 {[%emt 0:00:12]} g6 {[%emt 0:00:33]} 3. Nc3 {[%emt 0:04:13]} Nd7 {[%emt 0:07:17]} 4. Be3 {[%emt 0:03:02]} c6 {[%emt 0:04:29]} 5. Qd2 {[%emt 0:04:13]} Ngf6 {[%emt 0:02:20]} 6. f3 {[%emt 0:01:31]} b5 {[%emt 0:01:56]} 7. O-O-O {[%emt 0:07:05]} Qa5 {[%emt 0:07:37]} 8. Kb1 {[%emt 0:05:43]} a6 {[%emt 0:06:29]} 9. Bd3 {[%emt 0:25:22]} e5 {[%emt 0:08:04]} 10. dxe5 {[%emt 0:04:28]} Nxe5 {[%emt 0:03:24]} 11. Nd5 {[%emt 0:14:55]} Qxd2 {[%emt 0:05:12]} 12. Nxf6+ {[%emt 0:00:20]} Ke7 {[%emt 0:00:11]} 13. Rxd2 {[%emt 0:00:21]} Kxf6 {[%emt 0:00:30]} 14. f4 {[%emt 0:00:39]} Nxd3 {[%emt 0:01:39]} 15. Bd4+ {[%emt 0:01:03]} Ke7 {[%emt 0:04:38]} 16. Bxh8 {[%emt 0:01:20]} Nxf4 {[%emt 0:00:21]} 17. e5 {[%emt 0:01:37]} d5 {[%emt 0:01:53]} 18. Bf6+ {[%emt 0:03:38]} Ke6 {[%emt 0:02:21]} 19. Nf3 {[%emt 0:02:00]} Bh6 {[%emt 0:02:13]} 20. Ng5+ {[%emt 0:04:04]} Bxg5 {[%emt 0:00:41]} 21. Bxg5 {[%emt 0:00:17]} Kxe5 {[%emt 0:00:07]} 22. Re1+ {[%emt 0:03:32]} Kf5 {[%emt 0:01:43]} 23. Bxf4 {[%emt 0:00:30]} Kxf4 {[%emt 0:00:23]} 24. Rf2+ {[%emt 0:00:06]} Kg5 {[%emt 0:00:46]} 25. Rxf7 {[%emt 0:00:18]} h6 {[%emt 0:00:21]} 26. Rc7 {[%emt 0:01:01]} Bf5 {[%emt 0:00:24]} 27. Rxc6 {[%emt 0:00:28]} Be4 {[%emt 0:00:19]} 28. b3 {[%emt 0:01:28]} Kh4 {[%emt 0:03:46]} 29. Kb2 {[%emt 0:03:47]} a5 {[%emt 0:03:35]} 30. Re2 {[%emt 0:02:33]} h5 {[%emt 0:01:10]} 31. a3 {[%emt 0:01:44]} g5 {[%emt 0:00:24]} 32. Rb6 {[%emt 0:00:19]} b4 {[%emt 0:00:38]} 33. axb4 {[%emt 0:00:15]} axb4 {[%emt 0:01:56]} 34. Rxb4 {[%emt 0:00:03]} g4 {[%emt 0:00:13]} 35. Rbxe4 {[%emt 0:03:23]} dxe4 {[%emt 0:00:08]} 36. Rxe4 {[%emt 0:00:03]} Kg5 {[%emt 0:00:16]} 37. Re5+ {[%emt 0:00:12]} Kg6 {[%emt 0:00:12]} 38. c4 {[%emt 0:00:36]} h4 {[%emt 0:00:14]} 39. b4 {[%emt 0:00:58]} Kf6 {[%emt 0:00:18]} 40. Rh5 {[%emt 0:00:32] normal} 1-0